bitfinex/quotes_SOLUSD_20240925
["timestamp","ask_amount","ask_price","bid_price","bid_amount"]
[1727226940674,6.557,152.51,152.47,6.5583]
[1727226940876,23.776884,152.51,152.47,6.5583]
[1727226942977,23.776884,152.51,152.48,6.5578]
[1727226943191,23.776884,152.53,152.49,6.5576]
[1727226945190,25.4162145,152.53,152.49,6.5576]
[1727226946705,31.9722145,152.53,152.49,6.5576]
[1727226947103,30.332884,152.53,152.49,6.5576]
[1727226947486,16.386,152.57,152.49,1.31143978]
[1727226947487,23.776884,152.54,152.49,1.31143978]
[1727226947679,23.776884,152.54,152.5,6.5572]
[1727226947882,23.776884,152.52,152.48,16.3949]
[1727226948090,23.776884,152.5,152.46,0.244194]
[1727226948294,23.776884,152.48,152.46,0.244194]
[1727226948512,31.97523275,152.47,152.46,0.244194]
[1727226948811,30.335484,152.47,152.46,0.244194]
[1727226949016,51.97580705,152.47,152.46,0.244194]
[1727226950189,51.97580705,152.47,152.41,0.244194]
[1727226950190,6.5608,152.42,152.41,0.244194]
[1727226950795,30.337684,152.42,152.41,0.244194]
[1727226953421,23.776884,152.42,152.41,0.244194]
[1727226955402,31.97814359,152.42,152.41,0.244194]
[1727226956506,30.337684,152.42,152.41,0.244194]
[1727226958423,23.776884,152.42,152.41,0.244194]
[1727226958803,6.5595,152.46,152.41,6.805294]
[1727226959101,6.5595,152.45,152.41,0.244194]
[1727226959511,1.64023539,152.49,152.41,0.244194]
[1727226959703,6.5599,152.44,152.41,0.244194]
[1727226959909,6.5593,152.46,152.41,6.805294]
[1727226960097,25.4171201,152.45,152.41,0.244194]
[1727226960298,23.776884,152.45,152.41,0.244194]
[1727226960498,23.776884,152.42,152.41,0.244194]
[1727226963812,23.776884,152.42,152.41,6.805394]
[1727226964026,23.776884,152.42,152.41,0.244194]
[1727226966814,30.337684,152.42,152.41,0.244194]
[1727226969910,23.776884,152.42,152.41,0.244194]
[1727226970526,6.5591,152.46,152.41,0.244194]
[1727226970726,6.5591,152.46,152.42,6.5608]
[1727226971629,1.64007796,152.45,152.42,6.5608]
[1727226971930,6.5591,152.46,152.42,6.5608]
[1727226972305,23.776884,152.45,152.42,6.5608]
[1727226972835,23.776884,152.46,152.42,6.5608]
[1727226975213,31.97601112,152.46,152.42,6.5608]
[1727226976030,25.41691112,152.46,152.42,6.5608]
[1727226976234,23.776884,152.46,152.42,6.5608]
[1727226976436,25.41690796,152.46,152.42,6.5608]
[1727226976633,23.776884,152.46,152.42,6.5608]
[1727226977136,6.5578,152.49,152.44,6.5595]
[1727226977440,6.5578,152.49,152.45,6.5594]
[1727226977618,6.5573,152.51,152.46,7.87037557]
[1727226978125,6.5573,152.51,152.46,6.5587]
[1727226978940,23.776884,152.5,152.44,26.99228393]
[1727226979117,1.63959644,152.49,152.45,6.5594]
[1727226979513,30.334584,152.5,152.45,6.5594]
[1727226980113,6.557,152.51,152.47,6.5585]
[1727226980345,6.5566,152.52,152.47,6.5585]
[1727226980630,16.3894,152.54,152.47,6.5585]
[1727226980838,6.557,152.51,152.47,6.5585]
[1727226981943,23.776884,152.5,152.47,6.5585]
[1727226982438,1.63950172,152.49,152.46,6.559]
[1727226983513,23.776884,152.5,152.47,6.5585]
[1727226984310,23.776884,152.5,152.45,6.2899]
[1727226984750,23.776884,152.51,152.47,6.5583]
[1727226985038,23.776884,152.52,152.49,6.5577]
[1727226985436,0.244194,152.57,152.5,7.86873852]
[1727226985622,6.5552,152.55,152.5,7.86873852]
[1727226986529,8.19485684,152.54,152.49,6.5576]
[1727226986725,30.333484,152.52,152.48,22.9531]
[1727226987043,30.333484,152.52,152.48,16.395]
[1727226987523,30.333484,152.52,152.48,22.9531]
[1727226988556,23.776884,152.52,152.48,22.9531]
[1727226989048,30.333384,152.52,152.48,16.395]
[1727226989223,6.5578,152.49,152.46,15.8079]
[1727226989421,23.776884,152.48,152.45,6.2899]
[1727226989831,23.776884,152.48,152.44,6.5599]
[1727226990424,23.776884,152.46,152.43,6.5603]
[1727226990839,23.776884,152.46,152.42,32.0616]
[1727226991238,30.336184,152.46,152.42,16.4014]
[1727226991854,23.776884,152.44,152.42,16.4014]
[1727226992146,23.776884,152.44,152.41,6.805094]
[1727226992943,23.776884,152.45,152.41,6.805094]
[1727226993738,23.776884,152.42,152.41,0.244194]
[1727226994448,25.41732884,152.42,152.41,0.244194]
[1727226995335,23.776884,152.42,152.41,0.244194]
[1727226996058,30.337684,152.42,152.41,0.244194]
[1727226998550,66.150884,152.42,152.41,0.244194]
[1727227000839,50.337684,152.42,152.41,0.244194]
[1727227001346,30.337684,152.42,152.41,0.244194]
[1727227001545,6.5608,152.42,152.41,0.244194]
[1727227001745,20.0,152.45,152.41,0.244194]
[1727227002144,6.5608,152.43,152.41,0.244194]
[1727227002365,6.5608,152.42,152.41,0.244194]
[1727227002835,30.337684,152.42,152.41,0.244194]
[1727227005549,51.97847602,152.42,152.41,0.244194]
[1727227006047,50.337684,152.42,152.41,0.244194]
[1727227007349,26.5608,152.42,152.41,0.244194]
[1727227009750,50.337684,152.42,152.41,0.244194]
[1727227012345,30.339384,152.38,152.37,0.244194]
[1727227015736,50.339384,152.38,152.37,0.244194]
[1727227021769,23.776884,152.36,152.35,0.072495]
[1727227022062,51.98190665,152.36,152.35,0.072495]
[1727227022246,6.5651,152.32,152.31,0.3532885]
[1727227022452,8.20696876,152.32,152.31,0.3532885]
[1727227022762,26.5651,152.32,152.31,0.3532885]
[1727227023083,26.5651,152.32,152.26,0.316689]
[1727227023084,6.5672,152.27,152.26,0.316689]
[1727227023472,8.20947876,152.27,152.26,0.316689]
[1727227024383,31.98636276,152.27,152.26,0.316689]
[1727227024589,25.41916276,152.27,152.26,0.316689]
[1727227024773,23.776884,152.27,152.26,0.316689]
[1727227026182,30.344084,152.27,152.26,0.316689]
[1727227026356,23.776884,152.27,152.26,0.316689]
[1727227026760,50.344084,152.27,152.26,0.316689]
[1727227026955,50.345884,152.23,152.22,0.3532885]
[1727227028181,50.345884,152.23,152.22,0.3154201]
[1727227028686,23.776884,152.23,152.22,0.3154201]
[1727227029074,25.41950702,152.23,152.22,0.3154201]
[1727227029588,31.98850702,152.23,152.22,0.3154201]
[1727227030164,30.345884,152.23,152.22,0.3154201]
[1727227030889,31.98861256,152.23,152.22,0.3154201]
[1727227031888,50.345884,152.23,152.22,0.3154201]
[1727227032182,23.776884,152.23,152.22,0.3154201]
[1727227032385,15.3693,152.32,152.22,0.3154201]
[1727227032592,15.3693,152.32,152.22,16.7380201]
[1727227032786,6.84650779,152.35,152.24,22.4288]
[1727227032971,48.2735445,152.37,152.24,22.4288]
[1727227033172,6.5651,152.32,152.27,6.5672]
[1727227033377,1.64179882,152.31,152.25,22.9876]
[1727227033574,74.8190647,152.37,152.25,22.9876]
[1727227033575,6.5664,152.3,152.25,16.4199]
[1727227034097,6.5656,152.31,152.26,6.5674]
[1727227035271,23.776884,152.3,152.26,6.5674]
[1727227037472,1.64190536,152.29,152.26,6.5674]
[1727227037785,23.776884,152.28,152.26,6.5674]
[1727227038292,23.776884,152.28,152.24,22.4288]
[1727227038468,23.776884,152.26,152.24,22.4288]
[1727227038674,1.64190515,152.27,152.24,15.9483]
[1727227038675,23.776884,152.27,152.24,15.9483]
[1727227038874,23.776884,152.25,152.24,15.9483]
[1727227040692,23.776884,152.29,152.24,15.9483]
[1727227040872,20.0,152.33,152.27,6.5672]
[1727227041185,6.5651,152.32,152.27,6.5672]
[1727227041814,6.5643,152.34,152.29,6.5662]
[1727227041994,20.0,152.36,152.28,16.4168]
[1727227042185,23.776884,152.35,152.28,16.4168]
[1727227042384,6.565,152.33,152.28,22.9836]
[1727227042695,6.6507445,152.37,152.29,1.31337918]
[1727227042900,6.6507445,152.37,152.32,6.5647]
[1727227043270,0.0874445,152.37,152.33,6.5646]
[1727227043772,0.0874445,152.37,152.32,17.72472514]
[1727227043967,0.0874445,152.37,152.35,6.5637]
[1727227044193,0.0874445,152.37,152.32,17.72472514]
[1727227044490,0.0874445,152.37,152.34,6.5642]
[1727227044868,0.0874445,152.37,152.35,6.5637]
[1727227045292,0.0874445,152.37,152.34,22.5517]
[1727227045497,0.0874445,152.37,152.36,6.5634]
[1727227046901,0.0874445,152.37,152.36,24.43278989]
[1727227047087,0.2937701,152.42,152.36,32.96138989]
[1727227047405,0.2937701,152.42,152.39,16.4052]
[1727227047614,0.2937701,152.42,152.4,1.3121551]
[1727227047907,0.2937701,152.42,152.39,16.4052]
[1727227048393,0.2937701,152.42,152.41,6.5612]
[1727227048891,0.2937701,152.42,152.39,22.9669]
[1727227049779,0.2937701,152.42,152.4,6.5615]
[1727227052804,0.2937701,152.42,152.4,7.87365699]
[1727227053007,0.2937701,152.42,152.36,15.092]
[1727227053184,8.49496495,152.42,152.37,6.5629]
[1727227053507,6.8545701,152.42,152.37,6.5629]
[1727227053684,8.49495078,152.42,152.37,6.5629]
[1727227054285,23.776884,152.41,152.37,6.5629]
[1727227057200,30.338084,152.41,152.36,38.0637]
[1727227057405,23.776884,152.39,152.36,38.0637]
[1727227058107,23.776884,152.39,152.36,31.5004]
[1727227058911,23.776884,152.4,152.36,39.37620158]
[1727227059889,23.776884,152.4,152.36,38.0637]
[1727227062115,6.5613,152.41,152.36,38.0637]
[1727227062703,25.41738215,152.4,152.36,38.0637]
[1727227063023,31.97908215,152.4,152.36,38.0637]
[1727227063200,30.338584,152.4,152.36,38.0637]
[1727227064211,6.5621,152.39,152.34,12.7059]
[1727227064416,8.2028188,152.39,152.34,12.7059]
[1727227064935,8.2028188,152.39,152.34,6.142]
[1727227065110,8.2028188,152.39,152.35,6.5638]
[1727227066519,6.5621,152.39,152.34,12.7061]
[1727227067623,23.776884,152.38,152.34,12.7061]
[1727227067827,25.41769437,152.38,152.33,16.4113]
[1727227068012,1.64094325,152.37,152.32,16.2741]
[1727227068215,6.5637,152.36,152.32,16.2741]
[1727227068410,6.5637,152.36,152.3,22.5366]
[1727227068411,1.64094325,152.37,152.3,22.5366]
[1727227068731,1.64094325,152.37,152.31,6.5654]
[1727227068732,6.5641,152.35,152.31,6.5654]
[1727227069403,23.776884,152.35,152.31,6.5654]
[1727227069800,23.776884,152.36,152.32,6.5648]
[1727227070000,23.776884,152.37,152.33,6.5645]
[1727227070616,23.776884,152.37,152.3,22.5366]
[1727227071403,23.776884,152.37,152.3,6.1221]
[1727227071734,6.5647,152.33,152.29,6.566]
[1727227072106,23.776884,152.33,152.28,16.2741]
[1727227072309,23.776884,152.33,152.28,22.8408]
[1727227073717,30.341584,152.33,152.28,22.8408]
[1727227075318,23.776884,152.31,152.28,16.2741]
[1727227075522,30.342484,152.31,152.27,16.4178]
[1727227076321,23.776884,152.31,152.27,22.985]
[1727227078226,23.776884,152.31,152.25,13.41172229]
[1727227078227,23.776884,152.29,152.25,13.41172229]
[1727227078406,23.776884,152.29,152.25,6.568]
[1727227080503,16.4092,152.36,152.27,6.5671]
[1727227080719,16.4092,152.36,152.26,16.4186]
[1727227080720,23.776884,152.32,152.28,6.5664]
[1727227081109,23.776884,152.32,152.26,16.4186]
[1727227081322,23.776884,152.32,152.28,6.5667]
[1727227081520,23.776884,152.32,152.25,16.55684315]
[1727227081725,6.5646,152.34,152.3,6.5658]
[1727227082318,6.187,152.37,152.29,1.31307408]
[1727227082319,6.187,152.37,152.31,6.5654]
[1727227082628,6.187,152.37,152.28,16.4165]
[1727227082629,6.5638,152.35,152.3,6.5658]
[1727227082819,7.82835061,152.37,152.28,16.4165]
[1727227083026,23.776884,152.32,152.25,16.55684315]
[1727227083239,30.342984,152.3,152.26,6.5673]
[1727227083415,30.342984,152.3,152.25,22.9879]
[1727227084843,30.343684,152.28,152.22,30.0205646]
[1727227085137,8.20939161,152.27,152.22,30.0205646]
[1727227085737,30.343784,152.28,152.23,6.5689]
[1727227086737,1.64202324,152.27,152.23,6.5689]
[1727227086940,8.20922324,152.27,152.23,6.5689]
[1727227087118,30.344584,152.26,152.22,16.8259646]
[1727227088021,23.776884,152.26,152.22,23.3949646]
[1727227088343,6.5673,152.27,152.22,23.3949646]
[1727227088344,23.776884,152.27,152.22,16.8259646]
[1727227089335,23.776884,152.27,152.23,6.5689]
[1727227091319,30.344184,152.27,152.22,23.3926765]
[1727227092619,30.344184,152.27,152.23,6.5689]
[1727227092841,23.776884,152.27,152.23,6.5689]
[1727227094157,23.776884,152.27,152.22,23.3926765]
[1727227094158,30.344484,152.27,152.22,23.3926765]
[1727227094447,1.64202767,152.26,152.22,23.3926765]
[1727227094822,30.344484,152.27,152.22,23.3926765]
[1727227095153,6.5685,152.24,152.22,0.4002765]
[1727227095324,1.64235062,152.23,152.22,0.4002765]
[1727227096927,6.5685,152.24,152.22,0.4002765]
[1727227097528,6.5677,152.26,152.22,0.4002765]
[1727227097731,30.344284,152.27,152.22,6.9696765]
[1727227098256,1.64211939,152.26,152.22,6.9696765]
[1727227098625,30.344284,152.27,152.22,6.9696765]
[1727227099443,1.64214488,152.26,152.22,6.9696765]
[1727227099648,23.776884,152.25,152.22,0.4002765]
[1727227099844,1.64229965,152.24,152.22,0.4002765]
[1727227101148,23.776884,152.23,152.22,0.4002765]
[1727227102252,30.345884,152.23,152.22,0.4002765]
[1727227102551,23.776884,152.25,152.22,0.4002765]
[1727227103854,25.41915516,152.25,152.22,0.4002765]
[1727227104046,6.5686,152.24,152.22,0.4002765]
[1727227105150,23.776884,152.23,152.22,0.4002765]
[1727227105334,25.41928335,152.23,152.22,0.4002765]
[1727227105930,23.776884,152.23,152.22,0.4002765]
[1727227108564,6.5682,152.25,152.22,0.4002765]
[1727227109455,1.64230899,152.24,152.22,0.4002765]
[1727227109628,6.3576,152.28,152.22,0.4002765]
[1727227109629,6.569,152.23,152.22,0.4002765]
[1727227109830,30.345884,152.23,152.22,0.4002765]
[1727227110459,23.776884,152.23,152.22,0.4002765]
[1727227110954,31.98834597,152.23,152.22,0.4002765]
[1727227111152,30.345884,152.23,152.22,0.4002765]
[1727227118667,23.776884,152.23,152.22,0.4002765]
[1727227119567,6.3576,152.28,152.22,0.4002765]
[1727227119739,16.5293,152.29,152.23,6.5688]
[1727227119740,6.5673,152.27,152.23,6.5688]
[1727227120060,6.5668,152.28,152.23,6.5688]
[1727227120450,6.3578,152.32,152.25,6.5678]
[1727227120663,6.3578,152.32,152.24,27.04714556]
[1727227120844,32.9416,152.33,152.24,27.04714556]
[1727227120845,6.5669,152.28,152.24,16.4207]
[1727227121045,16.4148,152.31,152.23,15.0905]
[1727227121256,6.5686,152.24,152.22,0.4002765]
[1727227121670,6.5682,152.25,152.22,0.4002765]
[1727227122352,20.0,152.3,152.22,0.4002765]
[1727227122665,23.776884,152.25,152.22,0.4002765]
[1727227122861,25.419178,152.25,152.22,0.4002765]
[1727227123557,31.987278,152.25,152.22,0.4002765]
[1727227123773,1.64229251,152.24,152.22,0.4002765]
[1727227124866,30.344984,152.25,152.22,0.4002765]
[1727227126078,1.64229122,152.24,152.22,0.4002765]
[1727227127787,23.776884,152.25,152.22,0.4002765]
[1727227128082,30.345884,152.23,152.22,0.4002765]
[1727227128378,31.98835793,152.23,152.22,0.4002765]
[1727227128578,30.345884,152.23,152.22,0.4002765]
[1727227129660,50.345884,152.23,152.22,0.4002765]
[1727227130575,57.004384,152.23,152.22,0.4002765]
[1727227132679,50.345884,152.23,152.22,0.4002765]
[1727227134695,51.98878615,152.23,152.22,0.4002765]
[1727227135692,50.345884,152.23,152.22,0.4002765]
[1727227138888,28.21189996,152.23,152.22,0.4002765]
[1727227139088,26.569,152.23,152.22,0.4002765]
[1727227139406,6.569,152.23,152.22,0.4002765]
[1727227140188,30.345884,152.23,152.22,0.4002765]
[1727227141669,50.345884,152.23,152.22,0.4002765]
[1727227147877,16.4187,152.27,152.22,0.4002765]
[1727227148077,6.5682,152.25,152.22,0.4002765]
[1727227148283,6.5676,152.27,152.22,0.4002765]
[1727227148490,1.64220636,152.26,152.22,0.4002765]
[1727227149197,6.5686,152.24,152.22,0.4002765]
[1727227149572,23.776884,152.23,152.22,0.4002765]
[1727227159307,23.776884,152.24,152.22,0.4002765]
[1727227161280,23.776884,152.25,152.22,0.4002765]
[1727227162407,20.0,152.3,152.22,11.0326296]
[1727227162722,6.5667,152.29,152.24,6.5682]
[1727227164204,23.776884,152.28,152.24,6.5682]
[1727227164900,23.776884,152.28,152.24,17.2005531]
[1727227165591,23.776884,152.28,152.24,17.4917351]
[1727227165789,6.566,152.3,152.25,21.5762]
[1727227165984,6.5641,152.35,152.29,6.5664]
[1727227166179,6.5647,152.33,152.28,6.5667]
[1727227166407,1.64147017,152.32,152.28,6.5667]
[1727227166588,6.564,152.35,152.3,6.5658]
[1727227166784,22.4594,152.39,152.28,27.0489531]
[1727227167000,22.4594,152.39,152.29,6.5664]
[1727227167001,6.5643,152.34,152.29,6.5664]
[1727227169208,23.776884,152.33,152.29,6.5664]
[1727227169707,6.5643,152.34,152.29,6.5664]
[1727227171509,23.776884,152.33,152.29,6.5664]
[1727227172011,25.41817056,152.33,152.28,27.0489531]
[1727227172196,23.776884,152.31,152.28,16.4166]
[1727227172505,23.776884,152.31,152.26,10.6323531]
[1727227172808,23.776884,152.31,152.25,37.6761]
[1727227173606,23.776884,152.29,152.25,44.2442]
[1727227174428,23.776884,152.29,152.26,1.31337032]
[1727227174591,23.776884,152.29,152.25,37.6761]
[1727227174798,23.776884,152.29,152.25,44.244]
[1727227174986,23.776884,152.29,152.26,1.31337098]
[1727227175191,23.776884,152.31,152.26,10.6323531]
[1727227175686,6.5643,152.34,152.3,10.6323531]
[1727227177422,23.776884,152.33,152.3,10.6323531]
[1727227177913,26.5633,152.37,152.32,6.5649]
[1727227178214,6.5633,152.37,152.32,6.5649]
[1727227179298,6.5633,152.37,152.32,17.1972531]
[1727227180592,23.776884,152.36,152.31,38.8159]
[1727227180919,23.776884,152.34,152.31,38.8159]
[1727227181218,23.776884,152.34,152.31,15.7805]
[1727227182621,6.5655,152.31,152.28,16.4592443]
[1727227182798,6.5655,152.31,152.28,0.0425443]
[1727227183504,23.776884,152.34,152.28,0.0425443]
[1727227183818,6.5651,152.32,152.28,0.0425443]
[1727227184901,23.776884,152.29,152.28,0.0425443]
[1727227185105,30.343284,152.29,152.28,0.0425443]
[1727227189823,31.98533896,152.29,152.28,0.0425443]
[1727227190725,50.343284,152.29,152.28,0.0425443]
[1727227194026,51.98554322,152.29,152.28,0.0425443]
[1727227194402,50.343284,152.29,152.28,0.0425443]
[1727227202220,50.343284,152.29,152.28,4.43e-05]
[1727227202421,51.9857968,152.29,152.28,4.43e-05]
[1727227203017,45.4193968,152.29,152.24,0.2486377]
[1727227203223,50.344984,152.25,152.24,0.2486377]
[1727227208232,65.815284,152.25,152.24,0.2486377]
[1727227209563,50.345884,152.23,152.22,0.1090945]
[1727227209755,51.98898836,152.23,152.22,0.1090945]
[1727227210046,71.74898836,152.23,152.19,0.2486377]
[1727227210248,26.5703,152.2,152.19,0.2486377]
[1727227210540,28.21355111,152.2,152.19,0.2486377]
[1727227211452,28.21355111,152.2,152.17,0.072495]
[1727227211453,26.5711,152.18,152.17,0.072495]
[1727227211652,51.9914539,152.18,152.17,0.072495]
[1727227211823,6.5728,152.14,152.13,0.3577322]
[1727227212231,30.349684,152.14,152.13,0.3577322]
[1727227213551,50.349684,152.14,152.13,0.3577322]
[1727227214545,6.5741,152.11,152.1,0.2486377]
[1727227215140,26.5741,152.11,152.1,0.2486377]
[1727227215378,28.21844897,152.11,152.1,0.2486377]
[1727227216056,43.32554897,152.11,152.1,0.2486377]
[1727227216249,26.5741,152.11,152.1,0.2486377]
[1727227216644,50.350984,152.11,152.1,0.2486377]
[1727227217166,20.0,152.11,152.1,0.2486377]
[1727227217342,6.5741,152.12,152.1,0.2486377]
[1727227217542,22.8333,152.17,152.1,0.2486377]
[1727227217543,6.5732,152.14,152.1,0.2486377]
[1727227218065,15.1071,152.19,152.1,15.8376377]
[1727227218299,15.1071,152.19,152.11,6.574]
[1727227218571,6.5716,152.17,152.12,6.5733]
[1727227219172,1.64322856,152.16,152.12,6.5733]
[1727227219351,1.64322946,152.16,152.12,6.5733]
[1727227219557,6.5724,152.16,152.1,38.8474377]
[1727227220061,6.5724,152.16,152.11,6.574]
[1727227220401,23.776884,152.15,152.13,6.5732]
[1727227220684,23.776884,152.15,152.1,32.2731377]
[1727227220685,23.776884,152.15,152.12,6.5736]
[1727227221174,23.776884,152.16,152.12,6.5736]
[1727227221484,23.776884,152.17,152.13,6.5731]
[1727227221687,23.776884,152.15,152.12,6.5736]
[1727227222586,23.776884,152.16,152.12,6.5736]
[1727227222769,23.776884,152.16,152.13,6.5732]
[1727227222971,23.776884,152.16,152.1,32.2731377]
[1727227222972,20.0,152.22,152.14,6.3847]
[1727227223679,20.0,152.23,152.14,6.3847]
[1727227224182,23.776884,152.22,152.14,6.3847]
[1727227224357,23.776884,152.18,152.14,12.9575]
[1727227224882,23.776884,152.19,152.15,6.5723]
[1727227226557,23.776884,152.2,152.17,15.589]
[1727227226762,23.776884,152.2,152.18,6.5711]
[1727227226960,23.776884,152.23,152.19,6.5703]
[1727227228173,23.776884,152.23,152.18,16.4271]
[1727227228383,30.345884,152.23,152.18,22.9982]
[1727227229197,23.776884,152.2,152.17,15.589]
[1727227229364,6.5708,152.19,152.17,15.589]
[1727227229585,23.776884,152.16,152.14,6.3847]
[1727227229996,30.348984,152.16,152.13,15.9363]
[1727227230190,8.21566335,152.15,152.13,15.9363]
[1727227230717,23.776884,152.16,152.13,22.5094]
[1727227231417,23.776884,152.19,152.15,6.5723]
[1727227232094,6.5694,152.22,152.17,6.5714]
[1727227232613,6.5698,152.21,152.17,6.5714]
[1727227232909,16.4184,152.27,152.17,6.5714]
[1727227233363,6.5695,152.22,152.17,6.5714]
[1727227233724,23.776884,152.21,152.17,6.5714]
[1727227234835,23.776884,152.21,152.18,6.5711]
[1727227235212,23.776884,152.22,152.18,6.5711]
[1727227235411,23.776884,152.22,152.16,6.1085]
[1727227235616,30.346384,152.22,152.17,6.5714]
[1727227235824,6.5689,152.24,152.19,6.5703]
[1727227237229,23.776884,152.21,152.17,22.9997]
[1727227238129,23.776884,152.21,152.17,16.4282]
[1727227238307,23.776884,152.22,152.18,6.571]
[1727227239618,1.64259553,152.21,152.16,6.1085]
[1727227239822,23.776884,152.18,152.16,6.1085]
[1727227240308,23.776884,152.18,152.13,15.9363]
[1727227240309,30.348484,152.17,152.13,15.9363]
[1727227240629,6.5716,152.17,152.13,15.9363]
[1727227240815,23.776884,152.16,152.13,15.9363]
[1727227242429,23.776884,152.16,152.13,22.5095]
[1727227244420,30.348884,152.16,152.13,15.9363]
[1727227246622,23.776884,152.16,152.13,15.9363]
[1727227249020,23.776884,152.16,152.13,22.5095]
[1727227251937,1.64313796,152.15,152.11,16.4351]
[1727227252242,30.349184,152.16,152.11,16.4351]
[1727227252921,30.349184,152.16,152.11,23.0089]
[1727227253323,23.776884,152.16,152.11,16.4351]
[1727227253525,23.776884,152.16,152.12,6.5734]
[1727227253753,23.776884,152.16,152.12,7.88799627]
[1727227254818,23.776884,152.17,152.13,6.5732]
[1727227255438,23.776884,152.17,152.14,6.5728]
[1727227255636,23.776884,152.17,152.13,6.5731]
[1727227256152,6.5695,152.22,152.17,6.5712]
[1727227256330,20.0,152.24,152.16,1.31419868]
[1727227256649,6.5702,152.21,152.16,7.88609868]
[1727227257228,20.0,152.24,152.15,16.431]
[1727227257229,23.776884,152.19,152.15,23.0034]
[1727227257548,0.2486377,152.26,152.14,21.8756]
[1727227257549,6.8163377,152.26,152.21,6.5698]
[1727227257743,6.8163377,152.26,152.22,6.5692]
[1727227257744,0.2486377,152.26,152.22,6.5692]
[1727227257949,0.2486377,152.26,152.21,15.4669]
[1727227257950,0.2486377,152.26,152.21,38.2994]
[1727227258125,0.2486377,152.26,152.23,6.5689]
[1727227259235,0.2486377,152.26,152.25,6.5681]
[1727227259439,0.2486377,152.26,152.24,16.4209]
[1727227261753,0.2486377,152.26,152.25,7.88146007]
[1727227262139,0.2486377,152.26,152.25,6.5681]
[1727227262338,0.2486377,152.31,152.3,6.5659]
[1727227262553,0.2486377,152.31,152.3,7.87868821]
[1727227262935,0.2486377,152.31,152.3,6.5659]
[1727227263140,0.2486377,152.31,152.29,22.9816]
[1727227263656,16.9209327,152.4,152.29,22.9816]
[1727227263657,6.563,152.37,152.31,6.5653]
[1727227263836,0.3682124,152.36,152.32,1.31274457]
[1727227265052,24.1450964,152.36,152.31,6.5653]
[1727227265768,24.1450964,152.36,152.29,33.04325308]
[1727227265769,0.3682124,152.36,152.32,6.5649]
[1727227266134,0.3682124,152.36,152.33,7.87726266]
[1727227266652,0.3682124,152.36,152.33,6.5646]
[1727227266855,0.3682124,152.36,152.35,6.5638]
[1727227268038,0.3682124,152.36,152.35,7.87611615]
[1727227268254,0.3682124,152.36,152.35,6.5638]
[1727227268635,0.3682124,152.36,152.35,24.50376609]
[1727227268834,0.3682124,152.36,152.35,23.19145308]
[1727227269355,0.3682124,152.36,152.35,24.50366334]
[1727227269564,0.072495,152.39,152.35,37.93978685]
[1727227269747,0.072495,152.39,152.38,23.19015308]
[1727227270052,0.072495,152.39,152.38,24.50211024]
[1727227270257,0.072495,152.39,152.38,44.50211024]
[1727227270942,0.072495,152.39,152.38,43.19015308]
[1727227272435,0.072495,152.39,152.38,26.5625]
[1727227272662,0.072495,152.39,152.38,6.5625]
[1727227277845,0.072495,152.39,152.38,23.19015308]
[1727227278062,0.072495,152.39,152.38,44.50209656]
[1727227278262,0.072495,152.39,152.38,43.19015308]
[1727227279637,0.072495,152.39,152.38,44.50198901]
[1727227282565,0.072495,152.39,152.38,43.19015308]
[1727227286461,0.072495,152.39,152.34,21.4009]
[1727227286667,6.634595,152.39,152.35,6.5637]
[1727227286965,6.634595,152.39,152.34,31.6277]
[1727227286966,0.072495,152.39,152.36,1.3123933]
[1727227287571,0.072495,152.39,152.38,6.5625]
[1727227290281,0.072495,152.39,152.36,16.4076]
[1727227290889,0.072495,152.39,152.36,22.9709]
[1727227291486,0.072495,152.39,152.36,16.4076]
[1727227291670,0.072495,152.39,152.38,6.5625]
[1727227296776,0.072495,152.39,152.38,7.87462788]
[1727227298286,0.072495,152.39,152.38,6.5625]
[1727227298890,0.072495,152.39,152.38,7.87443284]
[1727227299770,0.072495,152.39,152.38,27.87441035]
[1727227299969,0.072495,152.39,152.38,26.5625]